bitfinex-derivatives/quotes_BTCF0:USTF0_20250928
["timestamp","ask_amount","ask_price","bid_price","bid_amount"]
[1759090162990,0.445003,110400.0,110390.0,0.1131339]
[1759090163192,0.445003,110400.0,110390.0,0.45183078]
[1759090165992,0.37267688,110400.0,110390.0,0.45183078]
[1759090167088,0.37267688,110400.0,110390.0,0.81263078]
[1759090167281,0.03398,110400.0,110390.0,0.81263078]
[1759090167789,0.03398,110400.0,110390.0,1.63459078]
[1759090169391,0.03398,110400.0,110390.0,0.81263078]
[1759090169594,0.03398,110400.0,110390.0,1.63455078]
[1759090169888,0.03398,110400.0,110390.0,1.63443078]
[1759090171494,0.03398,110400.0,110390.0,0.81263078]
[1759090171694,0.03398,110400.0,110390.0,1.63431078]
[1759090172191,0.03398,110400.0,110390.0,0.4739339]
[1759090172389,0.37267688,110400.0,110390.0,1.2955739]
[1759090172590,0.37267688,110400.0,110390.0,1.63427078]
[1759090172790,0.37267688,110400.0,110390.0,1.63447078]
[1759090173391,0.37267688,110400.0,110390.0,0.81263078]
[1759090173895,0.37267688,110400.0,110390.0,1.63471078]
[1759090176293,0.37267688,110400.0,110390.0,1.63455078]
[1759090176896,0.37267688,110400.0,110390.0,0.81263078]
[1759090177097,0.37267688,110400.0,110390.0,1.63455078]
[1759090177593,0.37267688,110400.0,110390.0,0.81263078]
[1759090177797,0.37267688,110400.0,110390.0,1.63451078]
[1759090178193,0.37267688,110400.0,110390.0,1.63447078]
[1759090178699,0.37267688,110400.0,110390.0,1.63443078]
[1759090180399,0.37267688,110400.0,110390.0,1.63439078]
[1759090180597,0.03398,110400.0,110390.0,1.63439078]
[1759090180901,0.37267688,110400.0,110390.0,1.63439078]
[1759090182414,0.05579529,110400.0,110390.0,1.63414447]
[1759090183409,0.50697247,110420.0,110410.0,0.1131175]
[1759090183410,0.03499,110420.0,110410.0,0.1131175]
[1759090183615,0.0568141,110420.0,110410.0,1.27320807]
[1759090186213,0.0431041,110420.0,110410.0,1.64175807]
[1759090186514,0.0218241,110420.0,110410.0,2.04175807]
[1759090187309,0.13801927,110430.0,110420.0,0.1131093]
[1759090187510,0.15983649,110430.0,110420.0,0.4739093]
[1759090188718,0.15983649,110430.0,110420.0,0.81235987]
[1759090190520,0.15983649,110430.0,110420.0,0.4739093]
[1759090191622,0.15983649,110430.0,110420.0,0.81235987]
[1759090192322,0.15983649,110430.0,110420.0,0.4739093]
[1759090197023,0.02181722,110430.0,110420.0,0.82010987]
[1759090197217,0.03571,110440.0,110430.0,0.1129402]
[1759090197424,0.05748306,110440.0,110430.0,1.27263077]
[1759090198227,0.05748306,110440.0,110430.0,0.9341402]
[1759090198528,0.39593363,110440.0,110430.0,0.9341402]
[1759090199025,0.39593363,110440.0,110430.0,0.1129402]
[1759090199228,0.39593363,110440.0,110430.0,0.9341402]
[1759090200431,0.40487107,110440.0,110430.0,0.9340602]
[1759090200731,0.40487107,110440.0,110430.0,0.1129402]
[1759090200932,0.40487107,110440.0,110430.0,0.9339802]
[1759090203426,0.49538327,110440.0,110430.0,0.9339802]
[1759090203729,0.40487107,110440.0,110430.0,0.9339802]
[1759090205030,0.49538327,110440.0,110430.0,0.9339802]
[1759090205332,0.49538327,110440.0,110430.0,0.9338602]
[1759090206830,0.1569327,110440.0,110430.0,0.9338602]
[1759090207534,0.0905207,110430.0,110420.0,0.4513263]
[1759090207829,0.86796611,110430.0,110420.0,0.9336686]
[1759090210124,0.52951554,110430.0,110420.0,0.9336686]
[1759090210422,0.86796611,110430.0,110420.0,0.9336686]
[1759090211931,0.1271787,110420.0,110410.0,0.02215]
[1759090212231,0.1271868,110410.0,110400.0,1.2941685]
[1759090212424,0.14900449,110410.0,110400.0,1.2941685]
[1759090212627,0.14900449,110410.0,110400.0,1.63261907]
[1759090217040,0.14900449,110410.0,110400.0,1.63241907]
[1759090220033,0.14900449,110410.0,110400.0,0.81193907]
[1759090220229,0.14900449,110410.0,110400.0,1.63237907]
[1759090220436,0.14899882,110410.0,110400.0,1.2938485]
[1759090220637,0.14899882,110410.0,110400.0,0.4734885]
[1759090220837,0.14899882,110410.0,110400.0,1.2938485]
[1759090221641,0.05846202,110410.0,110400.0,1.2938485]
[1759090223243,0.03665,110410.0,110400.0,1.2938485]
[1759090224739,0.03665,110410.0,110400.0,1.63229907]
[1759090229145,0.03665,110410.0,110400.0,0.81193907]
[1759090229346,0.03665,110410.0,110400.0,1.63205907]
[1759090234746,0.02281,110410.0,110400.0,1.63849907]
[1759090234951,0.0364,110420.0,110410.0,0.1119079]
[1759090235143,0.04437906,110420.0,110410.0,0.81890847]
[1759090235540,0.02256,110420.0,110410.0,0.81890847]
[1759090235745,0.05698178,110430.0,110420.0,0.1118997]
[1759090235941,0.07880394,110430.0,110420.0,1.27019027]
[1759090236149,0.05806216,110430.0,110420.0,1.27019027]
[1759090241952,0.05806216,110430.0,110420.0,0.45035027]
[1759090242153,0.05806216,110430.0,110420.0,1.27003027]
[1759090242454,0.05806216,110430.0,110420.0,0.45035027]
[1759090242654,0.05806216,110430.0,110420.0,1.26999027]
[1759090244254,0.39634556,110430.0,110420.0,1.2698231]
[1759090248548,0.39634556,110430.0,110420.0,1.2696231]
[1759090252258,0.39634556,110430.0,110420.0,1.2694631]
[1759090252759,0.05806216,110430.0,110420.0,1.2694631]
[1759090252960,0.39634556,110430.0,110420.0,1.2694631]
[1759090253165,0.39634556,110430.0,110420.0,0.4501831]
[1759090253364,0.39634556,110430.0,110420.0,1.2694231]
[1759090253767,0.48686816,110430.0,110420.0,1.2694231]
[1759090255576,0.39634556,110430.0,110420.0,1.2694231]
[1759090256575,0.39634556,110430.0,110420.0,1.6302231]
[1759090258773,0.39634556,110430.0,110420.0,0.8109831]
[1759090258973,0.39634556,110430.0,110420.0,1.6300631]
[1759090259575,0.39634556,110430.0,110420.0,0.8109831]
[1759090259876,0.39634556,110430.0,110420.0,1.6300231]
[1759090260173,0.39634556,110430.0,110420.0,0.8109831]
[1759090260372,0.39634556,110430.0,110420.0,1.6300231]
[1759090261374,0.39634556,110430.0,110420.0,1.2692231]
[1759090261563,0.39634556,110430.0,110420.0,1.6300231]
[1759090265673,0.04438216,110430.0,110420.0,1.9747465]
[1759090265877,0.02182216,110430.0,110420.0,1.9749065]
[1759090266073,0.02182216,110430.0,110420.0,1.1557065]
[1759090266276,0.02182216,110430.0,110420.0,1.9749065]
[1759090267078,0.02182216,110430.0,110420.0,1.1557065]
[1759090267279,0.02182216,110430.0,110420.0,1.9749065]
[1759090268383,0.02182216,110430.0,110420.0,1.1557065]
[1759090268680,0.02182216,110430.0,110420.0,1.9748665]
[1759090271483,0.02182216,110430.0,110420.0,1.98401387]
[1759090272885,0.36093084,110440.0,110430.0,0.1127716]
[1759090273090,0.40574128,110440.0,110430.0,0.451055]
[1759090295397,0.40574128,110440.0,110430.0,0.1127716]
[1759090295598,0.40574128,110440.0,110430.0,0.451055]
[1759090298098,0.06745788,110440.0,110430.0,0.451055]
[1759090298295,0.40574128,110440.0,110430.0,0.451055]
[1759090306209,0.40571146,110440.0,110430.0,0.1127716]
[1759090317613,0.42705953,110440.0,110430.0,0.1127716]
[1759090321011,0.40520909,110440.0,110430.0,0.1127716]
[1759090321215,0.42704108,110440.0,110430.0,0.1127716]
[1759090325921,0.0887875,110440.0,110430.0,0.1127716]
[1759090328721,0.42704108,110440.0,110430.0,0.1127716]
[1759090329621,0.05850199,110440.0,110430.0,0.85102518]
[1759090329816,0.04479199,110440.0,110430.0,0.85877518]
[1759090330021,0.04479199,110440.0,110430.0,1.21957518]
[1759090332619,0.04479199,110440.0,110430.0,2.03845518]
[1759090334927,0.05796199,110440.0,110430.0,2.03845518]
[1759090336329,0.05794451,110440.0,110430.0,2.03845518]
[1759090341341,0.05794451,110440.0,110430.0,1.21957518]
[1759090341540,0.05794451,110440.0,110430.0,2.03837518]
[1759090347045,0.05794451,110440.0,110430.0,1.21957518]
[1759090347350,0.05794451,110440.0,110430.0,2.03837518]
[1759090347548,0.05794451,110440.0,110430.0,2.03062518]
[1759090356258,0.02181451,110440.0,110430.0,2.33742876]
[1759090356557,0.02181451,110440.0,110430.0,1.99913518]
[1759090357157,0.02181451,110440.0,110430.0,1.91862876]
[1759090357353,0.10837013,110460.0,110450.0,0.1137767]
[1759090357559,0.02182187,110460.0,110450.0,0.82058028]
[1759090357753,0.02182187,110460.0,110450.0,1.63930028]
[1759090357956,0.02182187,110460.0,110450.0,0.82058028]
[1759090358158,0.02182187,110460.0,110450.0,1.63930028]
[1759090358354,0.41770447,110480.0,110470.0,0.1137603]
[1759090358555,0.43950841,110480.0,110470.0,1.27073388]
[1759090358756,0.51131897,110480.0,110470.0,1.27073388]
[1759090359363,0.51131897,110480.0,110470.0,1.22056388]
[1759090359364,0.02180394,110480.0,110470.0,1.22056388]
[1759090359661,0.40760682,110490.0,110480.0,0.1137521]
[1759090359861,0.42939749,110490.0,110480.0,0.45200568]
[1759090360158,0.03261749,110490.0,110480.0,0.85844568]
[1759090360462,0.01082682,110490.0,110480.0,0.81924568]
[1759090360658,0.01082682,110490.0,110480.0,1.63792568]
[1759090361158,0.05484318,110490.0,110480.0,0.45844568]
[1759090361453,0.06857318,110490.0,110480.0,0.45844568]
[1759090361654,0.06857318,110490.0,110480.0,0.45200568]
[1759090361857,0.06857318,110490.0,110480.0,1.27068568]
[1759090362461,0.06857318,110490.0,110480.0,0.45200568]
[1759090362961,0.06857318,110490.0,110480.0,1.27064568]
[1759090364161,0.06857318,110490.0,110480.0,0.45200568]
[1759090364361,0.06857318,110490.0,110480.0,1.27056568]
[1759090364556,0.76762676,110490.0,110480.0,0.9323121]
[1759090364764,0.40682676,110490.0,110480.0,0.9323121]
[1759090365065,0.76762676,110490.0,110480.0,0.9323121]
[1759090365359,0.7458604,110490.0,110480.0,1.27056568]
[1759090365663,0.04680682,110490.0,110480.0,1.27056568]
[1759090366060,0.04680682,110490.0,110480.0,0.45200568]
[1759090366262,0.04680682,110490.0,110480.0,1.27052568]
[1759090367962,0.04680682,110490.0,110480.0,0.45200568]
[1759090368163,0.04680682,110490.0,110480.0,1.27052568]
[1759090368363,0.38472837,110490.0,110480.0,1.27019365]
[1759090368863,0.38472837,110490.0,110480.0,1.27015365]
[1759090370666,0.38472837,110490.0,110480.0,0.45167365]
[1759090370862,0.38472837,110490.0,110480.0,1.27011365]
[1759090371165,0.38472837,110490.0,110480.0,0.45167365]
[1759090371365,0.38472837,110490.0,110480.0,1.27011365]
[1759090371566,0.38472837,110490.0,110480.0,0.45167365]
[1759090371767,0.38472837,110490.0,110480.0,1.27011365]
[1759090372266,0.04680682,110490.0,110480.0,1.27011365]
[1759090372466,0.38472837,110490.0,110480.0,1.27011365]
[1759090374469,0.38472837,110490.0,110480.0,0.45167365]
[1759090374768,0.38472837,110490.0,110480.0,1.27007365]
[1759090375069,0.38472837,110490.0,110480.0,0.45167365]
[1759090375261,0.40642042,110490.0,110480.0,1.27007365]
[1759090375456,0.38472837,110490.0,110480.0,1.27007365]
[1759090375656,0.40642036,110490.0,110480.0,1.27007365]
[1759090376163,0.40642036,110490.0,110480.0,0.45167365]
[1759090376367,0.49689306,110490.0,110480.0,1.27007365]
[1759090377169,0.91755262,110490.0,110480.0,0.1137521]
[1759090377374,0.91755262,110490.0,110480.0,0.9321521]
[1759090377859,0.91755262,110490.0,110480.0,1.27007365]
[1759090378669,0.91755262,110490.0,110480.0,0.9321521]
[1759090381274,0.57963107,110490.0,110480.0,0.9321121]
[1759090381476,0.91755262,110490.0,110480.0,0.9321121]
[1759090381776,0.91755262,110490.0,110470.0,0.4512876]
[1759090381979,1.161924,110480.0,110470.0,0.84159]
[1759090382169,1.18361599,110480.0,110470.0,0.84159]
[1759090382366,0.1252973,110460.0,110450.0,0.81245225]
[1759090382575,0.37272155,110460.0,110450.0,1.63081225]
[1759090382876,0.0348,110460.0,110450.0,1.63081225]
[1759090383178,0.46759077,110470.0,110460.0,0.1137273]
[1759090383380,0.82724683,110470.0,110460.0,0.45164885]
[1759090383675,0.91773593,110470.0,110460.0,0.7895704]
[1759090384180,0.91773593,110470.0,110460.0,0.45164885]
[1759090384769,0.82724683,110470.0,110460.0,0.45164885]
[1759090385772,0.91773713,110470.0,110460.0,0.45164885]
[1759090387380,0.91773713,110470.0,110460.0,1.27016885]
[1759090388274,0.91773713,110470.0,110460.0,1.27020885]
[1759090391478,0.55693713,110470.0,110460.0,1.27020885]
[1759090393575,0.55693713,110470.0,110460.0,0.45164885]
[1759090393777,0.1269884,110460.0,110450.0,0.45044405]
[1759090393975,0.48664446,110460.0,110450.0,0.1125225]
[1759090394177,0.48664446,110460.0,110450.0,0.9309625]
[1759090394681,0.82456601,110460.0,110450.0,0.1125225]
[1759090394882,0.73406761,110460.0,110450.0,0.9309625]
[1759090395180,0.39614606,110460.0,110450.0,0.9309625]
[1759090395382,0.39614606,110460.0,110450.0,0.1125225]
[1759090395587,0.48664446,110460.0,110450.0,0.9309625]
[1759090396074,0.48664446,110460.0,110450.0,0.1125225]
[1759090396275,0.82456601,110460.0,110450.0,0.9309625]
[1759090396470,0.48664446,110460.0,110450.0,0.9309625]
[1759090397386,0.49553857,110460.0,110450.0,0.9309625]
[1759090398486,0.83346012,110460.0,110450.0,0.9309625]
[1759090398686,0.82456601,110460.0,110450.0,0.9309625]
[1759090399184,0.48664446,110460.0,110450.0,0.9309625]
[1759090399385,0.48664446,110460.0,110450.0,1.26888405]
[1759090400587,0.48664446,110460.0,110450.0,0.9309625]
[1759090400775,0.48664446,110460.0,110450.0,1.26888405]
[1759090401186,0.82456601,110460.0,110450.0,0.9309625]
[1759090401387,0.82456601,110460.0,110450.0,0.9310025]
[1759090407088,0.82456601,110460.0,110450.0,0.1125225]
[1759090407290,0.82456601,110460.0,110450.0,0.9310425]
[1759090408590,0.48664446,110460.0,110450.0,0.9310425]
[1759090409189,0.82456601,110460.0,110450.0,0.9310425]
[1759090412492,0.82456601,110460.0,110450.0,0.94412775]
[1759090414191,0.82456601,110460.0,110450.0,0.94412789]
[1759090414390,0.82456601,110460.0,110450.0,0.9310425]
[1759090414691,0.82456601,110460.0,110450.0,0.1125225]
[1759090414989,0.82456601,110460.0,110450.0,0.9310425]
[1759090415291,0.82456601,110460.0,110450.0,0.1125225]
[1759090415487,0.82456601,110460.0,110450.0,0.0905025]
[1759090415688,1.58536601,110460.0,110450.0,0.0905025]
[1759090417391,0.90952291,110460.0,110450.0,0.0905025]
[1759090417591,1.58536601,110460.0,110450.0,0.0905025]
[1759090419583,1.18536601,110460.0,110450.0,0.0905025]
[1759090419982,2.00388601,110460.0,110450.0,0.0905025]
[1759090420587,1.18536601,110460.0,110450.0,0.0905025]
[1759090420788,1.18536601,110460.0,110450.0,0.1129525]
[1759090420789,2.00388601,110460.0,110450.0,0.1129525]
[1759090424294,1.18536601,110460.0,110450.0,0.1129525]
[1759090424493,2.00388601,110460.0,110450.0,0.1129525]
[1759090426192,2.00388601,110460.0,110450.0,0.0905025]
[1759090430199,1.66623871,110460.0,110450.0,0.0905025]
[1759090435798,0.05822451,110460.0,110450.0,0.4515783]
[1759090437004,0.05822451,110460.0,110450.0,0.1133825]
[1759090437303,0.39642031,110460.0,110450.0,0.9319025]
[1759090438703,0.05822451,110460.0,110450.0,0.9319025]
[1759090448221,0.05822451,110460.0,110450.0,1.2700983]
[1759090450323,0.05822451,110460.0,110450.0,0.4515783]
[1759090450622,0.05822451,110460.0,110450.0,1.27926617]
[1759090450823,0.05822451,110460.0,110450.0,0.46078617]
[1759090451022,0.05822451,110460.0,110450.0,1.27926617]
[1759090453724,0.05822451,110460.0,110450.0,0.46078617]
[1759090454022,0.05822451,110460.0,110450.0,1.27926617]
[1759090460026,0.05822451,110460.0,110450.0,0.46078617]
[1759090460228,0.05822451,110460.0,110450.0,1.27926617]
[1759090463731,0.05822451,110460.0,110450.0,1.64006617]
[1759090464831,0.04463862,110460.0,110450.0,2.04650617]
[1759090465124,0.02184862,110460.0,110450.0,2.04650617]
[1759090467530,0.10687077,110470.0,110460.0,0.1118764]
[1759090467829,0.1287087,110470.0,110460.0,0.4500722]
[1759090468530,0.1287087,110470.0,110460.0,1.2685122]
[1759090470530,0.1287087,110470.0,110460.0,0.9303164]
[1759090470722,0.1287087,110470.0,110460.0,0.1118764]
[1759090471030,0.1287087,110470.0,110460.0,0.9303164]
[1759090474130,0.1287087,110470.0,110460.0,0.1118764]
[1759090474325,0.0938287,110470.0,110460.0,0.9303164]
[1759090474530,0.1149787,110470.0,110460.0,0.9367564]
[1759090475230,0.1287387,110470.0,110460.0,1.2749522]
[1759090475427,0.37453,110480.0,110470.0,0.1118702]
[1759090475628,0.04297217,110480.0,110470.0,0.4804202]
[1759090475826,0.02115,110480.0,110470.0,0.4804202]
[1759090476533,0.02115,110480.0,110470.0,0.818616]
[1759090480639,0.02115,110480.0,110470.0,1.636976]
[1759090481338,0.38390262,110490.0,110480.0,0.111862]
[1759090481532,0.06750309,110490.0,110480.0,0.4500578]
[1759090481735,0.06750309,110490.0,110480.0,0.111862]
[1759090484338,0.06750309,110490.0,110480.0,0.930222]
[1759090486048,0.06750309,110490.0,110480.0,0.111862]
[1759090486251,0.06750309,110490.0,110480.0,0.930182]
[1759090486457,0.40569889,110490.0,110480.0,0.930182]
[1759090487951,0.03262309,110490.0,110480.0,1.2761278]
[1759090488449,0.03262309,110490.0,110480.0,1.6761278]
[1759090489552,0.03262309,110490.0,110480.0,1.68519631]
[1759090490052,0.03262309,110490.0,110480.0,0.8578078]
[1759090490252,0.03262309,110490.0,110480.0,1.6761278]
[1759090492249,0.03262309,110490.0,110480.0,1.67582661]
[1759090492554,0.03262309,110490.0,110480.0,2.03662661]
[1759090493353,0.03262309,110490.0,110480.0,1.21830661]
[1759090493556,0.03262309,110490.0,110480.0,2.03658661]
[1759090493953,0.3705177,110490.0,110480.0,2.03658661]
[1759090495844,0.3705177,110490.0,110480.0,2.04551359]
[1759090496045,0.03262309,110490.0,110480.0,2.04551359]
[1759090497754,0.03262309,110490.0,110480.0,1.22723359]
[1759090498056,0.03262309,110490.0,110480.0,2.3834082]
[1759090500652,0.03262309,110490.0,110480.0,2.37444122]
[1759090502153,0.03262309,110490.0,110480.0,2.38339517]
[1759090503153,0.03262309,110490.0,110480.0,2.38367517]
[1759090503549,0.03262309,110490.0,110480.0,1.56515517]
[1759090503752,0.03262309,110490.0,110480.0,2.38363517]
[1759090506064,0.03262309,110490.0,110480.0,1.56515517]
[1759090506261,0.03262309,110490.0,110480.0,2.38359517]
[1759090507458,0.8581416,110490.0,110480.0,0.1118621]
[1759090507761,1.2581416,110490.0,110480.0,0.9302221]
[1759090507961,1.2581416,110490.0,110480.0,1.26811671]
[1759090508260,1.2581416,110490.0,110480.0,0.44975671]
[1759090508458,1.2581416,110490.0,110480.0,1.26823671]
[1759090509766,0.8068677,110490.0,110480.0,1.26823671]
[1759090511974,0.8068677,110490.0,110480.0,1.28188121]
[1759090512183,0.8068677,110490.0,110480.0,0.9439866]
[1759090512388,0.8068677,110490.0,110480.0,1.28188121]
[1759090512885,0.8068677,110490.0,110480.0,1.26823671]
[1759090513872,0.8973416,110490.0,110480.0,1.26823671]
[1759090514685,0.8068677,110490.0,110480.0,1.26823671]
[1759090515391,0.8068677,110490.0,110480.0,1.26803671]
[1759090515880,0.8068677,110490.0,110480.0,0.44975671]
[1759090516085,0.8068677,110490.0,110480.0,1.26803671]
[1759090516692,0.8068677,110490.0,110480.0,0.9301421]
[1759090516984,0.8068677,110490.0,110480.0,1.26803671]
[1759090518886,0.8973415,110490.0,110480.0,0.1118621]
[1759090519086,0.8973415,110490.0,110480.0,0.9302621]
[1759090519287,0.8973415,110490.0,110480.0,0.1118621]
[1759090519490,0.8973415,110490.0,110480.0,0.9302221]
[1759090519684,0.8973415,110490.0,110480.0,0.1118621]
[1759090519888,0.8973415,110490.0,110480.0,0.9302221]
[1759090522279,0.8973415,110490.0,110480.0,0.1118621]
[1759090522484,0.8973415,110490.0,110480.0,0.9301821]
[1759090522691,0.8068677,110490.0,110480.0,0.9301821]
[1759090522988,0.8068677,110490.0,110480.0,1.26807671]
[1759090529591,0.8068677,110490.0,110480.0,1.62887671]
[1759090530095,0.8068677,110490.0,110480.0,1.26807671]
[1759090531596,0.8068677,110490.0,110480.0,1.26799671]
[1759090537700,0.8068677,110490.0,110480.0,1.62879671]
[1759090538202,0.8068677,110490.0,110480.0,1.26799671]
[1759090538596,0.8068677,110490.0,110480.0,1.62879671]
[1759090539400,0.4068677,110490.0,110480.0,1.62879671]
[1759090540302,0.40689979,110490.0,110480.0,1.62879671]
[1759090542105,0.40689979,110490.0,110480.0,1.2909021]
[1759090542406,0.40689979,110490.0,110480.0,1.62879671]
[1759090546414,0.06900518,110490.0,110480.0,1.62879671]
[1759090546610,0.40689979,110490.0,110480.0,1.62879671]
[1759090549114,0.40689979,110490.0,110480.0,1.2909021]
[1759090549302,0.40689979,110490.0,110480.0,1.62879671]
[1759090549906,0.40689979,110490.0,110480.0,1.62875671]
[1759090554219,0.40695489,110490.0,110480.0,1.2908621]
[1759090565524,0.06900518,110490.0,110480.0,0.4726621]
[1759090565724,0.06900518,110490.0,110480.0,1.2908621]
[1759090567235,0.40695489,110490.0,110480.0,1.2908621]
[1759090567826,0.40695489,110490.0,110480.0,0.4726621]
[1759090568033,0.40695489,110490.0,110480.0,1.2908221]
[1759090568634,0.40695489,110490.0,110480.0,0.4726621]
[1759090568830,0.40695489,110490.0,110480.0,1.2908221]
[1759090569038,0.49742749,110490.0,110480.0,1.2908221]
[1759090569335,0.40695489,110490.0,110480.0,1.2908221]
[1759090572138,0.06900518,110490.0,110480.0,1.2908221]
[1759090572340,0.40695489,110490.0,110480.0,1.2908221]
[1759090573341,0.06900518,110490.0,110480.0,1.2908221]
[1759090573546,0.40695489,110490.0,110480.0,1.2908221]
[1759090575641,0.49742879,110490.0,110480.0,1.2908221]
[1759090576341,0.49742879,110490.0,110480.0,0.9300221]
[1759090578243,0.49742879,110490.0,110480.0,0.1118621]
[1759090578547,1.5961785,110490.0,110480.0,0.0904821]
[1759090582142,0.1253358,110480.0,110470.0,0.0904848]
[1759090582347,0.84591387,110480.0,110470.0,0.0904848]
[1759090582547,0.84591387,110480.0,110470.0,0.1134648]
[1759090584749,1.66411387,110480.0,110470.0,0.1134648]
[1759090588055,0.84591387,110480.0,110470.0,0.1134648]
[1759090588242,1.66411387,110480.0,110470.0,0.1134648]
[1759090588757,0.84591387,110480.0,110470.0,0.1134648]
[1759090589053,1.66411387,110480.0,110470.0,0.1134648]
[1759090589652,1.66415387,110480.0,110470.0,0.1134648]
[1759090590153,0.84591387,110480.0,110470.0,0.1134648]
[1759090590350,1.66415387,110480.0,110470.0,0.1134648]
[1759090595950,1.66415387,110480.0,110470.0,0.0904848]
[1759090596157,0.1253403,110470.0,110460.0,0.9317151]
[1759090596358,0.48511837,110470.0,110460.0,0.9317151]
[1759090596560,0.48511837,110470.0,110460.0,0.1134751]
[1759090596958,0.49423803,110470.0,110460.0,0.1134751]
[1759090598057,0.56603337,110470.0,110460.0,0.1134751]
[1759090599561,0.53508535,110470.0,110460.0,0.1134751]
[1759090601060,0.54428486,110470.0,110460.0,0.1134751]
[1759090606356,0.56607124,110470.0,110460.0,0.1134751]
[1759090616365,0.56619304,110470.0,110460.0,0.1134751]
[1759090622273,0.56619304,110470.0,110460.0,0.0904951]
[1759090623175,0.56619304,110470.0,110460.0,0.1125251]
[1759090623376,0.92699304,110470.0,110460.0,0.02203]
[1759090623878,0.92699304,110470.0,110460.0,0.1125284]
[1759090624182,0.92699304,110470.0,110460.0,0.0904984]
[1759090625079,0.92699304,110470.0,110460.0,0.1125284]
[1759090625679,0.58892153,110470.0,110460.0,0.1125284]
[1759090625875,0.92699304,110470.0,110460.0,0.1125284]
[1759090629389,0.56619304,110470.0,110460.0,0.1125284]
[1759090629589,0.92699304,110470.0,110460.0,0.1125284]
[1759090635599,0.56619304,110470.0,110460.0,0.1125284]
[1759090637100,0.22812153,110470.0,110460.0,0.1125284]
[1759090637302,0.56619304,110470.0,110460.0,0.1125284]
[1759090637696,0.92699304,110470.0,110460.0,0.1125284]
[1759090654423,0.56619304,110470.0,110460.0,0.1125284]
[1759090666026,0.55699353,110470.0,110460.0,0.45059991]
[1759090669426,0.55699118,110470.0,110460.0,0.45059991]
[1759090674735,0.46650088,110470.0,110460.0,0.81139991]
[1759090676235,0.46650088,110470.0,110460.0,1.62947991]
[1759090676430,0.55699118,110470.0,110460.0,1.62947991]
[1759090677232,0.46650088,110470.0,110460.0,1.62947991]
[1759090678132,0.55699118,110470.0,110460.0,1.62947991]
[1759090678332,0.556972,110470.0,110460.0,1.2914084]
[1759090682846,0.55700546,110470.0,110460.0,1.2914084]
[1759090683752,0.55700546,110470.0,110460.0,0.4733284]
[1759090683954,0.55700546,110470.0,110460.0,1.2913684]
[1759090686957,0.55700546,110470.0,110460.0,0.4733284]
[1759090687154,0.55700546,110470.0,110460.0,1.2913684]
[1759090693160,0.46651516,110470.0,110460.0,1.2913684]
[1759090694961,0.12846283,110470.0,110460.0,1.2913684]
[1759090696462,0.12846283,110470.0,110460.0,0.9305684]
[1759090696663,0.12846283,110470.0,110460.0,1.2913684]
[1759090697165,0.12846283,110470.0,110460.0,1.2913284]
[1759090704064,0.12846283,110470.0,110460.0,1.62938073]
[1759090710068,0.12846283,110470.0,110460.0,1.2913284]
[1759090710367,0.12846283,110470.0,110460.0,1.62938073]
[1759090711076,0.12846283,110470.0,110460.0,0.81138073]
[1759090711370,0.12846283,110470.0,110460.0,1.62934073]
[1759090711669,0.12846283,110470.0,110460.0,1.62930073]
[1759090712067,0.12846283,110470.0,110460.0,1.2912484]
[1759090713775,0.12846283,110470.0,110460.0,0.4733284]
[1759090713974,0.12846283,110470.0,110460.0,1.2912484]
[1759090720581,0.12846283,110470.0,110460.0,1.62930073]
[1759090723187,0.12846283,110470.0,110460.0,1.2912484]
[1759090723379,0.12846283,110470.0,110460.0,1.62930073]
[1759090729788,0.12846283,110470.0,110460.0,0.81138073]
[1759090730090,0.12846283,110470.0,110460.0,1.62926073]
[1759090734188,0.12846283,110470.0,110460.0,1.2912084]
[1759090734387,0.12846283,110470.0,110460.0,1.62926073]
[1759090738196,0.12846283,110470.0,110460.0,1.96722856]
[1759090741302,0.02181749,110470.0,110460.0,1.97497856]
[1759090741496,0.02472682,110490.0,110470.0,0.1183903]
[1759090741702,0.06958912,110490.0,110480.0,0.9297821]
[1759090741998,0.05568912,110490.0,110480.0,1.61355226]
[1759090742195,0.03258912,110490.0,110480.0,1.97435226]
[1759090742403,0.03258912,110490.0,110480.0,1.98360211]
[1759090742591,0.03257032,110490.0,110480.0,1.98360211]
[1759090743493,0.03257032,110490.0,110480.0,2.38360211]
[1759090744801,0.03257032,110490.0,110480.0,1.56576211]
[1759090744997,0.01082682,110490.0,110480.0,2.38356211]
[1759090746998,0.01082682,110490.0,110480.0,1.55651226]
[1759090747299,0.01082682,110490.0,110480.0,2.37431226]
[1759090747802,0.01082682,110490.0,110480.0,1.55651226]
[1759090747995,0.01082682,110490.0,110480.0,2.37431226]
[1759090749695,0.01082682,110490.0,110480.0,1.55651226]
[1759090749897,0.01082682,110490.0,110480.0,2.37427226]
[1759090751099,0.01082682,110490.0,110480.0,1.70755033]
[1759090751306,0.01082682,110490.0,110480.0,2.38357049]
[1759090752003,0.46020793,110510.0,110500.0,0.1130257]
[1759090752004,0.00593854,110510.0,110500.0,0.1130257]
[1759090752198,0.00593854,110510.0,110500.0,2.66641594]
[1759090752394,0.71186008,110540.0,110530.0,0.1130011]
[1759090752395,0.43288983,110540.0,110530.0,0.1130011]
[1759090752600,0.40501967,110540.0,110530.0,1.16756118]
[1759090752794,0.40501967,110540.0,110530.0,1.15981118]
[1759090752795,0.41806967,110540.0,110530.0,1.15981118]
[1759090753101,0.41806967,110540.0,110530.0,0.45101118]
[1759090753403,0.73440008,110550.0,110540.0,0.112993]
[1759090753593,0.7560575,110550.0,110540.0,0.45100308]
[1759090753797,0.8464823,110550.0,110540.0,0.45100308]
[1759090753995,0.8464823,110550.0,110540.0,0.46514351]
[1759090754195,0.39639,110550.0,110540.0,0.46514351]
[1759090754399,0.82482488,110550.0,110540.0,0.46514351]
[1759090754606,0.82482488,110550.0,110540.0,1.28442351]
[1759090754906,0.73440008,110550.0,110540.0,1.28442351]
[1759090755100,0.73440008,110550.0,110540.0,0.46514351]
[1759090755303,0.73440008,110550.0,110540.0,1.28438351]
[1759090755802,0.39639,110550.0,110540.0,1.28438351]
[1759090756009,0.73440008,110550.0,110540.0,1.28438351]
[1759090756300,0.73440008,110550.0,110540.0,1.28430351]
[1759090757199,0.4868148,110550.0,110540.0,1.28430351]
[1759090757503,0.82482488,110550.0,110540.0,0.46491122]
[1759090757704,0.82482488,110550.0,110540.0,1.28403122]
[1759090758510,0.82482488,110550.0,110540.0,0.46491122]
[1759090758895,0.82482488,110550.0,110540.0,1.28395122]
[1759090759104,0.4868148,110550.0,110540.0,1.28395122]
[1759090759299,0.82482488,110550.0,110540.0,0.46491122]
[1759090759605,0.82482488,110550.0,110540.0,0.94590114]
[1759090759810,0.82482488,110550.0,110540.0,0.12690114]
[1759090760105,0.82482488,110550.0,110540.0,1.27000308]
[1759090761606,0.82482488,110550.0,110540.0,0.45100308]
[1759090761810,0.82482488,110550.0,110540.0,1.27000308]
[1759090762906,0.82482488,110550.0,110540.0,0.931993]
[1759090763308,0.82482488,110550.0,110540.0,1.27000308]
[1759090763606,0.82482488,110550.0,110540.0,1.26996308]
[1759090764106,0.82482488,110550.0,110540.0,1.28368967]
[1759090764307,0.82482488,110550.0,110540.0,1.29783008]
[1759090764808,0.82482488,110550.0,110540.0,0.47887008]